bitfinex-derivatives/quotes_BNBF0:USTF0_20251203
["timestamp","ask_amount","ask_price","bid_price","bid_amount"]
[1764800783530,1.09352032,915.63,914.89,0.996]
[1764800783728,1.09352032,915.62,914.89,0.996]
[1764800783932,1.09352032,915.61,914.89,0.996]
[1764800784130,1.09352032,915.6,914.89,0.996]
[1764800784329,1.09352032,915.59,914.89,0.996]
[1764800784530,1.09352032,915.58,914.89,0.996]
[1764800784831,1.09352032,915.57,914.89,0.996]
[1764800785030,1.09352032,915.56,914.89,0.996]
[1764800785235,1.09352032,915.55,914.89,0.996]
[1764800785436,1.08099502,915.84,914.89,0.996]
[1764800785634,1.09344963,915.83,914.89,0.996]
[1764800785831,1.09344963,915.82,914.89,0.996]
[1764800786034,1.09344963,915.81,914.89,0.996]
[1764800786232,1.09344963,915.8,914.89,0.996]
[1764800786437,1.09344963,915.79,914.89,0.996]
[1764800786735,1.09344963,915.78,914.89,0.996]
[1764800786938,1.09344963,915.77,914.89,0.996]
[1764800787140,1.09344963,915.76,914.89,0.996]
[1764800787340,1.09344963,915.75,914.89,0.996]
[1764800787539,1.09344963,915.74,914.89,0.996]
[1764800787740,1.09344963,915.73,914.89,0.996]
[1764800787938,1.09344963,915.72,914.89,0.996]
[1764800788136,1.09344963,915.71,914.89,0.996]
[1764800788338,1.09344963,915.7,914.89,0.996]
[1764800788539,1.09344963,915.69,914.89,0.996]
[1764800788835,1.09344963,915.68,914.89,0.996]
[1764800789039,1.09344963,915.67,914.89,0.996]
[1764800789238,1.09344963,915.66,914.89,0.996]
[1764800789438,1.09344963,915.65,914.89,0.996]
[1764800789641,1.09344963,915.64,914.89,0.996]
[1764800789942,1.09344963,915.63,914.89,0.996]
[1764800790138,1.09344963,915.62,914.89,0.996]
[1764800790340,1.09344963,915.61,914.89,0.996]
[1764800790642,1.09344963,915.6,914.89,0.996]
[1764800790941,1.09344963,915.59,914.89,0.996]
[1764800791141,1.09344963,915.58,914.89,0.996]
[1764800791341,1.09344963,915.57,914.89,0.996]
[1764800791544,1.08099502,915.92,914.89,0.996]
[1764800791743,1.09344749,915.91,914.89,0.996]
[1764800791943,1.09344749,915.9,914.89,0.996]
[1764800792144,1.09344749,915.89,914.89,0.996]
[1764800792340,1.09344749,915.88,914.89,0.996]
[1764800792540,1.09344749,915.87,914.89,0.996]
[1764800792743,1.09344749,915.86,914.89,0.996]
[1764800792943,1.09344749,915.85,914.89,0.996]
[1764800793141,1.09344749,915.84,914.89,0.996]
[1764800793346,1.09344749,915.83,914.89,0.996]
[1764800793543,1.09344749,915.82,914.89,0.996]
[1764800793748,1.08099502,915.97,914.89,0.996]
[1764800793749,1.09344749,915.81,914.89,0.996]
[1764800794051,1.09344749,915.8,914.89,0.996]
[1764800794247,1.09344749,915.79,914.89,0.996]
[1764800794443,1.09344749,915.78,914.89,0.996]
[1764800794644,1.09344749,915.77,914.89,0.996]
[1764800794846,1.09344749,915.76,914.89,0.996]
[1764800795046,1.09344749,915.75,914.89,0.996]
[1764800795243,1.09344749,915.74,914.89,0.996]
[1764800795446,1.09344749,915.73,914.89,0.996]
[1764800795745,1.09344749,915.72,914.89,0.996]
[1764800796047,1.09344749,915.71,914.89,0.996]
[1764800796245,1.09344749,915.7,914.89,0.996]
[1764800796445,1.09344749,915.69,914.89,0.996]
[1764800796644,1.09344749,915.68,914.89,0.996]
[1764800796847,1.09344749,915.67,914.89,0.996]
[1764800797047,1.09344749,915.66,914.89,0.996]
[1764800797243,1.09344749,915.65,914.89,0.996]
[1764800797445,1.09344749,915.64,914.89,0.996]
[1764800797644,1.09344749,915.63,914.89,0.996]
[1764800797847,1.09344749,915.62,914.89,0.996]
[1764800798045,1.09344749,915.61,914.89,0.996]
[1764800798245,1.08099502,916.0,914.89,0.996]
[1764800798548,1.0934338,915.99,914.89,0.996]
[1764800798749,1.0934338,915.98,914.89,0.996]
[1764800798949,1.0934338,915.97,914.89,0.996]
[1764800799151,1.0934338,915.96,914.89,0.996]
[1764800799351,1.0934338,915.95,914.89,0.996]
[1764800799646,1.0934338,915.94,914.89,0.996]
[1764800799848,1.0934338,915.93,914.89,0.996]
[1764800800045,1.0934338,915.92,914.89,0.996]
[1764800800245,1.0934338,915.91,914.89,0.996]
[1764800800446,1.0934338,915.9,914.89,0.996]
[1764800800646,1.0934338,915.89,914.89,0.996]
[1764800800846,1.0934338,915.88,914.89,0.996]
[1764800801050,1.0934338,915.87,914.89,0.996]
[1764800801250,1.0934338,915.86,914.89,0.996]
[1764800801446,1.0934338,915.85,914.89,0.996]
[1764800801650,1.0934338,915.84,914.89,0.996]
[1764800801850,1.0934338,915.83,914.89,0.996]
[1764800802052,1.0934338,915.82,914.89,0.996]
[1764800802250,1.0934338,915.81,914.89,0.996]
[1764800802547,1.0934338,915.8,914.89,0.996]
[1764800802847,1.0934338,915.79,914.89,0.996]
[1764800803046,1.0934338,915.78,914.89,0.996]
[1764800803250,1.0934338,915.77,914.89,0.996]
[1764800803447,1.0934338,915.76,914.89,0.996]
[1764800803747,1.0934338,915.75,914.89,0.996]
[1764800803952,1.0934338,915.74,914.89,0.996]
[1764800804152,1.0934338,915.73,914.89,0.996]
[1764800804355,1.0934338,915.72,914.89,0.996]
[1764800804555,1.0934338,915.71,914.89,0.996]
[1764800804755,1.0934338,915.7,914.89,0.996]
[1764800805054,1.0934338,915.69,914.89,0.996]
[1764800805254,1.0934338,915.68,914.89,0.996]
[1764800805454,1.0934338,915.67,914.89,0.996]
[1764800805654,1.0934338,915.66,914.89,0.996]
[1764800805956,1.0934338,915.65,914.89,0.996]
[1764800806255,1.0934338,915.64,914.89,0.996]
[1764800806450,1.0934338,915.63,914.89,0.996]
[1764800806656,1.0934338,915.62,914.89,0.996]
[1764800806956,1.0934338,915.61,914.89,0.996]
[1764800807155,1.0934338,915.6,914.89,0.996]
[1764800807455,1.08099502,915.96,914.89,0.996]
[1764800807456,1.0934338,915.59,914.89,0.996]
[1764800807659,1.0934338,915.58,914.89,0.996]
[1764800807858,1.0934338,915.57,914.89,0.996]
[1764800808057,1.0934338,915.56,914.89,0.996]
[1764800808353,1.0934338,915.55,914.89,0.996]
[1764800808553,1.0934338,915.54,914.89,0.996]
[1764800808757,1.08099502,915.92,914.89,0.996]
[1764800809057,1.09353552,915.91,914.89,0.996]
[1764800809256,1.09353552,915.9,914.89,0.996]
[1764800809451,1.09353552,915.89,914.89,0.996]
[1764800809651,1.09353552,915.88,914.89,0.996]
[1764800809853,1.09353552,915.87,914.89,0.996]
[1764800810057,1.09353552,915.86,914.89,0.996]
[1764800810258,1.09353552,915.85,914.89,0.996]
[1764800810556,1.09353552,915.84,914.89,0.996]
[1764800810754,1.09353552,915.83,914.89,0.996]
[1764800811053,1.09353552,915.82,914.89,0.996]
[1764800811254,1.09353552,915.81,914.89,0.996]
[1764800811458,1.09353552,915.8,914.89,0.996]
[1764800811759,1.09353552,915.79,914.63,0.937]
[1764800812057,1.09353552,915.78,914.63,0.937]
[1764800812255,1.09353552,915.77,914.63,0.937]
[1764800812455,1.09353552,915.76,914.63,0.937]
[1764800812762,1.09353552,915.75,914.63,0.937]
[1764800812958,1.09353552,915.74,914.63,0.937]
[1764800813158,1.09353552,915.73,914.63,0.937]
[1764800813359,1.09353552,915.72,914.63,0.937]
[1764800813560,1.09353552,915.71,914.63,0.937]
[1764800813759,1.09353552,915.7,914.63,0.937]
[1764800813960,1.09353552,915.69,914.63,0.937]
[1764800814163,1.09353552,915.68,914.63,0.937]
[1764800814363,1.09353552,915.67,914.64,0.882]
[1764800814658,1.09353552,915.66,914.64,0.882]
[1764800814856,1.09353552,915.65,914.64,0.882]
[1764800815060,1.09353552,915.64,914.64,0.882]
[1764800815263,1.09353552,915.63,914.64,0.882]
[1764800815463,1.09353552,915.62,914.64,0.882]
[1764800815664,1.09353552,915.61,914.64,0.882]
[1764800815966,1.09353552,915.6,914.64,0.882]
[1764800816166,1.09353552,915.59,914.64,0.882]
[1764800816368,1.09353552,915.58,914.64,0.882]
[1764800816668,1.09353552,915.57,914.64,0.882]
[1764800816868,1.09353552,915.56,914.64,0.882]
[1764800817064,1.09353552,915.55,914.64,0.882]
[1764800817264,1.09353552,915.54,914.64,0.882]
[1764800817466,1.09353552,915.53,914.64,0.882]
[1764800817668,1.09353552,915.52,914.64,0.882]
[1764800817866,1.09353552,915.51,914.64,0.882]
[1764800818065,1.09353552,915.5,914.64,0.882]
[1764800818267,1.09353552,915.49,914.64,0.882]
[1764800818466,1.09353552,915.48,914.64,0.882]
[1764800818665,1.09353552,915.47,914.64,0.882]
[1764800818871,1.08099502,915.77,914.64,0.882]
[1764800819167,1.09357081,915.76,914.64,0.882]
[1764800819365,1.09357081,915.75,914.64,0.882]
[1764800819565,1.09357081,915.74,914.64,0.882]
[1764800819769,1.09357081,915.73,914.64,0.882]
[1764800819969,1.09357081,915.72,914.64,0.882]
[1764800820269,1.09357081,915.71,914.64,0.882]
[1764800820469,0.01172599,916.41,914.64,0.882]
[1764800820470,1.09357081,915.7,914.64,0.882]
[1764800820667,1.09357081,915.69,914.64,0.882]
[1764800820967,1.09357081,915.68,914.64,0.882]
[1764800821171,1.09357081,915.67,914.64,0.882]
[1764800821466,1.09357081,915.66,914.64,0.882]
[1764800821670,1.09357081,915.65,914.64,0.882]
[1764800821970,1.09357081,915.64,914.64,0.882]
[1764800822169,1.09357081,915.63,914.64,0.882]
[1764800822370,1.09357081,915.62,914.64,0.882]
[1764800822571,1.09357081,915.61,914.64,0.882]
[1764800822866,1.09357081,915.6,914.64,0.882]
[1764800823169,1.09357081,915.59,914.64,0.882]
[1764800823470,1.09357081,915.58,914.64,0.882]
[1764800823668,1.09357081,915.57,914.64,0.882]
[1764800823868,1.09357081,915.56,914.64,0.882]
[1764800824069,1.09357081,915.55,914.64,0.882]
[1764800824265,1.09357081,915.54,914.64,0.882]
[1764800824467,1.09357081,915.53,914.64,0.882]
[1764800824765,1.09357081,915.52,914.64,0.882]
[1764800824969,1.09357081,915.51,914.64,0.882]
[1764800825165,1.09357081,915.5,914.64,0.882]
[1764800825366,1.09357081,915.49,914.64,0.882]
[1764800825568,1.09357081,915.48,914.64,0.882]
[1764800825767,1.09357081,915.47,914.64,0.882]
[1764800825971,1.09357081,915.46,914.64,0.882]
[1764800826170,1.09357081,915.45,914.64,0.882]
[1764800827172,1.08099502,915.37,914.64,0.882]
[1764800827371,1.09357081,915.36,914.64,0.882]
[1764800828172,1.08099502,915.3,914.64,0.882]
[1764800828372,1.09357081,915.29,914.64,0.882]
[1764800829273,1.08099502,915.26,914.64,0.882]
[1764800829470,1.09357081,915.25,914.64,0.882]
[1764800830173,1.08099502,915.24,914.64,0.882]
[1764800830372,1.09357081,915.23,914.64,0.882]
[1764800830575,1.09357081,915.22,914.64,0.882]
[1764800830873,1.08099502,915.25,914.64,0.882]
[1764800830874,1.09357081,915.21,914.64,0.882]
[1764800831070,1.09357081,915.2,914.64,0.882]
[1764800831274,1.09357081,915.19,914.64,0.882]
[1764800831478,1.09357081,915.18,914.64,0.882]
[1764800831675,1.09357081,915.17,914.64,0.882]
[1764800831974,1.09357081,915.16,914.64,0.882]
[1764800832172,1.08099502,915.21,914.64,0.882]
[1764800832373,1.0935728,915.2,914.64,0.882]
[1764800832572,1.0935728,915.19,914.64,0.882]
[1764800832776,1.0935728,915.18,914.64,0.882]
[1764800832975,1.0935728,915.17,914.64,0.882]
[1764800833177,1.0935728,915.16,914.64,0.882]
[1764800833476,1.0935728,915.15,914.64,0.882]
[1764800833673,1.0935728,915.14,914.64,0.882]
[1764800833876,1.0935728,915.13,914.64,0.882]
[1764800834178,1.0935728,915.12,914.64,0.882]
[1764800834477,1.0935726,915.11,914.64,0.882]
[1764800834672,1.0935726,915.1,914.64,0.882]
[1764800834875,1.08099502,915.16,914.64,0.882]
[1764800835073,1.0935724,915.15,914.64,0.882]
[1764800835274,1.08099502,915.13,914.64,0.882]
[1764800835477,1.0935724,915.12,914.64,0.882]
[1764800835674,1.0935724,915.11,914.64,0.882]
[1764800835875,1.0935724,915.1,914.64,0.882]
[1764800836072,1.0935724,915.09,914.64,0.882]
[1764800836277,1.0935724,915.08,914.64,0.882]
[1764800836478,1.0935724,915.07,914.64,0.882]
[1764800836676,1.0935724,915.06,914.64,0.882]
[1764800836878,1.08099502,915.09,914.64,0.882]
[1764800837071,1.09357227,915.08,914.64,0.882]
[1764800837272,1.09357227,915.07,914.64,0.882]
[1764800837474,1.09357227,915.06,914.64,0.882]
[1764800837778,1.08099502,915.09,914.64,0.882]
[1764800837978,1.09357227,915.08,914.64,0.882]
[1764800838174,1.09357227,915.07,914.64,0.882]
[1764800838477,1.09357227,915.06,914.64,0.882]
[1764800838678,1.08099502,915.1,914.64,0.882]
[1764800838882,1.09357107,915.09,914.64,0.882]
[1764800839076,1.09357107,915.08,914.64,0.882]
[1764800839278,1.09357107,915.07,914.64,0.882]
[1764800839480,1.09357107,915.06,914.64,0.882]
[1764800839675,1.08099502,915.1,914.64,0.882]
[1764800839875,1.09357107,915.09,914.64,0.882]
[1764800840080,1.09357107,915.08,914.64,0.882]
[1764800840279,1.09357107,915.07,914.64,0.882]
[1764800840480,1.09357107,915.06,914.64,0.882]
[1764800840681,1.08099502,915.1,914.64,0.882]
[1764800840976,1.08099502,915.08,914.64,0.882]
[1764800841180,1.09357347,915.07,914.64,0.882]
[1764800843981,1.09357347,915.06,914.64,0.882]
[1764800844280,1.09357347,915.05,914.64,0.882]
[1764800844478,1.08099502,915.09,914.64,0.882]
[1764800844679,1.09358242,915.08,914.64,0.882]
[1764800844875,1.09358242,915.07,914.64,0.882]
[1764800845377,1.09358242,915.06,914.64,0.882]
[1764800845581,1.09358242,915.05,914.64,0.882]
[1764800845784,1.08099502,915.17,914.64,0.882]
[1764800846083,2.17448352,915.16,914.64,0.882]
[1764800846383,1.08099502,915.07,914.64,0.882]
[1764800846583,1.0934885,915.06,914.64,0.882]
[1764800846782,1.08099502,915.08,914.64,0.882]
[1764800846783,1.0934885,915.05,914.64,0.882]
[1764800846983,1.0934885,915.04,914.64,0.882]
[1764800847182,1.0934885,915.03,914.64,0.882]
[1764800847481,1.08099502,915.07,914.64,0.882]
[1764800847680,1.09360615,915.06,914.64,0.882]
[1764800847879,1.09360615,915.05,914.64,0.882]
[1764800848079,1.09360615,915.04,914.64,0.882]
[1764800848384,1.09360615,915.03,914.64,0.882]
[1764800848684,1.08099502,915.07,914.64,0.882]
[1764800848883,1.09360635,915.06,914.64,0.882]
[1764800849179,1.08099502,914.99,914.64,0.882]
[1764800849484,1.08099502,914.97,914.64,0.882]
[1764800849685,1.08099502,914.93,914.64,0.882]
[1764800849980,1.09360635,914.92,914.64,0.882]
[1764800850385,0.01232161,915.84,914.64,0.882]
[1764800850386,1.08099502,914.83,914.64,0.882]
[1764800850681,1.09360635,914.82,914.64,0.882]
[1764800850984,1.08099502,914.84,914.64,0.882]
[1764800850985,1.09360635,914.81,914.64,0.882]
[1764800851186,1.09360635,914.8,914.64,0.882]
[1764800851386,1.08099502,914.85,914.64,0.882]
[1764800851583,1.09389597,914.84,914.64,0.882]
[1764800851781,1.09389597,914.83,914.64,0.882]
[1764800851986,1.09389597,914.82,914.64,0.882]
[1764800852184,1.08099502,914.85,914.64,0.882]
[1764800852385,0.19023514,915.12,914.64,0.882]
[1764800852386,1.09389597,914.84,914.64,0.882]
[1764800852584,1.09389597,914.83,914.64,0.882]
[1764800852784,1.08099502,914.86,914.64,0.882]
[1764800852990,1.09389037,914.85,914.64,0.882]
[1764800853186,1.09389037,914.84,914.64,0.882]
[1764800853386,1.09389037,914.83,914.64,0.882]
[1764800853589,1.08099502,914.87,914.64,0.882]
[1764800853883,1.0939061,914.86,914.64,0.882]
[1764800854088,1.0939061,914.85,914.64,0.882]
[1764800854286,1.0939061,914.84,914.64,0.882]
[1764800854490,1.08099502,914.88,914.64,0.882]
[1764800854689,1.0939051,914.87,914.64,0.882]
[1764800854989,1.0939051,914.86,914.64,0.882]
[1764800855189,0.19023514,915.12,914.64,0.882]
[1764800855190,1.0939051,914.85,914.64,0.882]
[1764800855389,1.08099502,914.89,914.64,0.882]
[1764800855589,1.09390622,914.88,914.64,0.882]
[1764800855788,1.09390622,914.87,914.64,0.882]
[1764800855987,1.09390622,914.86,914.64,0.882]
[1764800856188,1.09390622,914.85,914.64,0.882]
[1764800856387,1.08099502,914.89,914.64,0.882]
[1764800856592,1.09390622,914.88,914.64,0.882]
[1764800856791,1.09390622,914.87,914.64,0.882]
[1764800856991,1.09390622,914.86,914.64,0.882]
[1764800857192,1.08099502,914.89,914.64,0.882]
[1764800857389,1.09390622,914.88,914.64,0.882]
[1764800857593,1.09390622,914.87,914.64,0.882]
[1764800857893,1.09390622,914.86,914.64,0.882]
[1764800858190,1.08099502,914.91,914.64,0.882]
[1764800858495,1.09390622,914.9,914.64,0.882]
[1764800858693,1.09390622,914.89,914.64,0.882]
[1764800858890,1.09390622,914.88,914.64,0.882]
[1764800859089,1.09390622,914.87,914.64,0.882]
[1764800859290,1.08099502,914.9,914.64,0.882]
[1764800859490,1.0939144,914.89,914.64,0.882]
[1764800859694,1.0939144,914.88,914.64,0.882]
[1764800859895,1.0939144,914.87,914.64,0.882]
[1764800860092,1.08099502,914.91,914.64,0.882]
[1764800860296,1.09390761,914.9,914.64,0.882]
[1764800860496,1.09390761,914.89,914.64,0.882]
[1764800860697,1.09390761,914.88,914.64,0.882]
[1764800860893,1.08099502,914.91,914.64,0.882]
[1764800861096,1.09390662,914.9,914.64,0.882]
[1764800861397,1.09390662,914.89,914.64,0.882]
[1764800861593,1.09390662,914.88,914.64,0.882]
[1764800861799,1.08099502,914.92,914.64,0.882]
[1764800861993,1.09390582,914.91,914.64,0.882]
[1764800862193,1.09390582,914.9,914.64,0.882]
[1764800862397,1.09390582,914.89,914.64,0.882]
[1764800862597,1.08099502,914.92,914.64,0.882]
[1764800862798,1.09390582,914.91,914.64,0.882]
[1764800862999,1.09390582,914.9,914.64,0.882]
[1764800863298,1.09390582,914.89,914.64,0.882]
[1764800863498,1.08099502,914.93,914.64,0.882]
[1764800863698,1.09390582,914.92,914.64,0.882]
[1764800863894,1.09390582,914.91,914.64,0.882]
[1764800864104,1.09390582,914.9,914.64,0.882]
[1764800864405,1.09390582,914.89,914.64,0.882]
[1764800864602,1.08099502,914.93,914.64,0.882]
[1764800864805,1.09390582,914.92,914.64,0.882]
[1764800865007,1.09390582,914.91,914.64,0.882]
[1764800865201,1.08099502,914.97,914.64,0.882]
[1764800865404,1.08099502,915.03,914.64,0.882]
[1764800865606,1.09377918,915.02,914.64,0.882]
[1764800865804,1.09377918,915.01,914.64,0.882]
[1764800866104,1.09377918,915.0,914.64,0.882]
[1764800866302,1.08099502,915.04,914.64,0.882]
[1764800866503,1.0937724,915.03,914.64,0.882]
[1764800866702,1.0937724,915.02,914.64,0.882]
[1764800866903,1.0937724,915.01,914.64,0.882]
[1764800867102,1.0937724,915.0,914.64,0.882]
[1764800867309,1.08099502,915.03,914.64,0.882]
[1764800867609,1.09378078,915.02,914.64,0.882]
[1764800867907,1.09378078,915.01,914.64,0.882]
[1764800868107,2.1747758,915.01,914.64,0.882]
[1764800868307,1.09378078,915.0,914.64,0.882]
[1764800868709,1.09378078,914.99,914.64,0.882]
[1764800868909,1.08099502,915.02,914.64,0.882]
[1764800869105,1.09379792,915.01,914.64,0.882]
[1764800869304,1.08099502,914.95,913.97,0.01184402]
[1764800869504,1.09379792,914.94,913.94,0.81516136]
[1764800870009,2.17479294,914.94,913.93,0.81516136]
[1764800870207,1.09379792,914.93,913.93,0.81516136]
[1764800870403,1.08099502,914.96,913.94,0.81516136]
[1764800870704,1.08099502,915.02,914.0,0.81516136]
[1764800870907,1.0937942,915.01,914.0,0.81516136]
[1764800871103,1.0937942,915.0,914.0,0.81516136]
[1764800871307,1.0937942,914.99,914.0,0.81516136]
[1764800871508,1.08099502,915.02,914.0,0.81516136]
[1764800871708,1.0937942,915.01,914.0,0.81516136]
[1764800872008,1.0937942,915.0,914.0,0.81516136]
[1764800872204,1.0937942,914.99,914.01,0.81516136]
[1764800872405,1.08099502,915.02,914.01,0.81516136]
[1764800872605,1.0937942,915.01,914.01,0.81516136]
[1764800872809,1.0937942,915.0,914.01,0.81516136]
[1764800873006,1.0937942,914.99,914.01,0.81516136]
[1764800873311,1.08099502,915.02,914.02,0.984]
[1764800873511,1.0937938,915.01,914.02,0.984]
[1764800873711,1.0937938,915.0,914.02,0.984]
[1764800873908,1.0937938,914.99,914.02,0.984]
[1764800874209,1.08099502,915.02,914.02,0.984]
[1764800874416,1.09378682,915.01,914.03,0.81516136]
[1764800874907,1.08099502,915.55,914.53,0.81516136]
[1764800875110,1.08099502,915.53,914.52,0.81516136]
[1764800875308,1.09314975,915.52,914.49,0.81516136]
[1764800875508,2.17414477,915.51,914.46,0.81516136]
[1764800875812,1.08099502,915.51,914.46,0.81516136]
[1764800876213,1.08099502,915.52,914.46,0.81516136]
[1764800876406,1.08099502,915.52,914.3,1.08247247]
[1764800876407,1.08099502,915.53,914.45,0.81516136]
[1764800876808,1.08099502,915.55,914.47,0.81516136]
[1764800877008,1.08099502,915.59,914.51,0.81516136]
[1764800877209,1.08099502,915.64,914.52,0.81516136]
[1764800877408,1.09311665,915.63,914.52,0.81516136]
[1764800877711,1.08099502,915.64,914.52,0.81516136]
[1764800878114,1.08099502,915.67,914.55,0.81516136]
[1764800878314,1.08099502,915.75,914.6,0.81516136]
[1764800879116,1.08099502,915.75,914.59,0.81516136]
[1764800879309,1.08099502,915.77,914.57,0.81516136]
[1764800880117,1.08099502,915.79,914.59,0.81516136]
[1764800880317,1.08099502,915.85,914.65,0.81516136]
[1764800880519,1.08099502,915.94,914.74,0.81516136]
[1764800880718,1.08099502,915.95,914.75,0.81516136]
[1764800880918,0.19009382,916.09,914.02,0.984]
[1764800880919,1.08099502,915.98,914.78,0.81516136]
[1764800881118,2.17375922,915.97,914.77,0.81516136]
[1764800881320,1.08099502,916.01,914.73,0.81516136]
[1764800881618,1.08099502,916.02,914.75,0.81516136]
[1764800881814,1.08099502,916.04,914.76,0.81516136]
[1764800882114,1.08099502,916.02,914.75,0.81516136]
[1764800882315,2.17379823,916.01,914.67,0.81516136]
[1764800882513,1.08099502,916.01,914.67,0.81516136]
[1764800883220,1.09281888,916.0,914.63,0.81516136]
[1764800883420,1.08099502,916.02,914.63,0.81516136]
[1764800883617,1.08099502,916.01,914.62,0.81516136]
[1764800884321,1.08099502,916.04,914.6,0.81516136]
[1764800884521,1.09282731,916.03,914.6,0.81516136]
[1764800884822,1.08099502,916.04,914.6,0.81516136]
[1764800885021,1.09282691,916.03,914.6,0.81516136]
[1764800885222,1.08099502,916.07,914.59,0.81516136]
[1764800885418,2.17382193,916.06,914.59,0.81516136]
[1764800885617,1.09282691,916.05,914.59,0.81516136]
[1764800885922,1.09282691,916.04,914.59,0.81516136]
[1764800886121,1.08099502,916.06,914.59,0.81516136]
[1764800886318,1.09282651,916.05,914.57,0.81516136]
[1764800886523,1.08099502,916.08,914.57,0.81516136]
[1764800886723,1.09282651,916.07,914.57,0.81516136]
[1764800887019,1.09282651,916.06,914.57,0.81516136]
[1764800887223,0.19009382,916.09,914.56,0.81516136]
[1764800887423,1.09282651,916.08,914.56,0.81516136]
[1764800887623,1.09282651,916.07,914.56,0.81516136]
[1764800887824,1.09282651,916.06,914.55,0.81516136]
[1764800888024,1.09282651,916.05,914.51,0.81516136]
[1764800888324,1.09282651,916.05,914.5,0.81516136]
[1764800888524,0.19009382,916.09,914.4,0.81516136]
[1764800888525,1.08099502,915.97,914.4,0.81516136]
[1764800888824,2.17382153,915.96,914.39,0.81516136]
[1764800889027,1.09282651,915.95,914.39,0.81516136]
[1764800889220,1.09282651,915.95,914.4,0.81516136]
[1764800889425,1.09282651,915.94,914.39,0.81516136]
[1764800889624,1.09282651,915.93,914.39,0.81516136]
[1764800889821,1.08099502,916.05,914.46,0.81516136]
[1764800890022,1.09293357,916.04,914.46,0.81516136]
[1764800890226,1.09293357,916.03,914.45,0.81516136]
[1764800890424,1.09293357,916.02,914.44,0.81516136]
[1764800890628,1.09293357,916.01,914.45,0.81516136]
[1764800890829,1.09293357,916.0,914.45,0.81516136]
[1764800891127,1.09293357,915.99,914.45,0.81516136]
[1764800891427,1.08099502,916.06,914.44,0.81516136]
[1764800891625,1.09293357,916.05,914.44,0.81516136]
[1764800891825,1.09293357,916.04,914.44,0.81516136]
[1764800892023,1.09293357,916.03,914.42,0.81516136]
[1764800892327,1.08099502,915.98,914.34,0.81516136]
[1764800892524,1.09293357,915.97,914.34,0.81516136]
[1764800893024,1.09293357,915.97,914.33,0.81516136]
[1764800893223,1.09293357,915.97,914.34,0.81516136]
[1764800893427,1.09293357,915.96,914.33,0.81516136]
[1764800893622,1.09293357,915.95,914.33,0.81516136]
[1764800893827,1.09293357,915.94,914.33,0.81516136]
[1764800894123,1.09293357,915.93,914.33,0.81516136]
[1764800894326,1.09293357,915.92,914.33,0.81516136]
[1764800894527,1.08099502,915.99,914.33,0.81516136]
[1764800894826,1.09304601,915.98,914.33,0.81516136]
[1764800895025,1.09304601,915.97,914.33,0.81516136]
[1764800895221,1.09304601,915.96,914.32,0.81516136]
[1764800895428,1.09304601,915.95,914.29,0.81516136]
[1764800896326,1.09304601,915.95,914.3,0.95]
[1764800896524,1.09304601,915.94,914.3,0.95]
[1764800896729,1.09304601,915.93,914.3,0.95]
[1764800896928,1.09304601,915.92,914.3,0.95]
[1764800897126,1.09304601,915.91,914.3,0.95]
[1764800897330,1.09304601,915.9,914.3,0.95]
[1764800897526,1.09304601,915.89,914.3,0.95]
[1764800897730,1.08099502,916.05,914.36,0.81516136]
[1764800897927,1.09309951,916.04,914.36,0.81516136]
[1764800898132,1.09309951,916.03,914.36,0.81516136]
[1764800898431,1.09309951,916.02,914.35,0.81516136]
[1764800898628,1.09309951,916.01,914.35,0.81516136]
[1764800898931,1.09309951,916.0,914.36,0.81516136]
[1764800899227,1.08099502,916.07,914.36,0.81516136]
[1764800899432,2.17408895,916.06,914.36,0.81516136]
[1764800899731,1.09309393,916.05,914.36,0.81516136]
[1764800899931,1.09309393,916.04,914.35,0.81516136]
[1764800900131,1.09309393,916.03,914.35,0.81516136]
[1764800900327,1.09309393,916.02,914.35,0.81516136]